bitfinex-derivatives/quotes_BTCF0:USTF0_20230401
["timestamp","ask_amount","ask_price","bid_price","bid_amount"]
[1680311855598,0.05,28457.0,28454.0,0.00736333]
[1680311856603,0.3007,28455.0,28454.0,0.00736333]
[1680311863302,0.05,28457.0,28454.0,0.00736333]
[1680311863614,0.05,28457.0,28454.0,0.00636333]
[1680311863818,0.3507,28458.0,28454.0,0.00636333]
[1680311865122,0.3507,28458.0,28454.0,0.00536333]
[1680311865305,0.3507,28458.0,28454.0,0.00736333]
[1680311865502,0.3507,28458.0,28454.0,0.00536333]
[1680311865714,0.3507,28458.0,28454.0,0.00736333]
[1680311871612,0.3507,28458.0,28454.0,0.00536333]
[1680311871924,0.3507,28458.0,28454.0,0.00736333]
[1680311874324,0.05,28457.0,28454.0,0.00736333]
[1680311875016,0.05,28457.0,28454.0,0.00536333]
[1680311875219,0.3007,28455.0,28454.0,0.00736333]
[1680311875611,0.05,28457.0,28454.0,0.00736333]
[1680311875813,0.3007,28455.0,28454.0,0.00736333]
[1680311876115,0.3007,28455.0,28454.0,0.00536333]
[1680311876311,0.3007,28455.0,28454.0,0.00636333]
[1680311887930,0.3007,28455.0,28454.0,0.00736333]
[1680311895024,0.3007,28455.0,28454.0,0.00715906]
[1680311896128,0.3007,28455.0,28454.0,0.002]
[1680311901620,0.3007,28455.0,28453.0,0.03568748]
[1680311901825,0.3507,28454.0,28377.0,0.56316928]
[1680311902035,0.3007,28449.0,28445.0,1.1258138]
[1680311902232,0.3007,28449.0,28446.0,0.00533316]
[1680311903429,0.3007,28449.0,28446.0,0.03333316]
[1680311908735,0.05,28453.0,28446.0,0.03333316]
[1680311908937,0.3007,28450.0,28446.0,0.03333316]
[1680311910034,0.05,28449.0,28446.0,0.03333316]
[1680311911036,0.3007,28449.0,28446.0,0.03333316]
[1680311916253,0.05,28452.0,28446.0,0.03333316]
[1680311916453,0.3007,28450.0,28446.0,0.03333316]
[1680311917247,0.3007,28450.0,28446.0,0.00533316]
[1680311917553,0.3007,28450.0,28446.0,0.03333316]
[1680311921362,0.05,28452.0,28446.0,0.03333316]
[1680311921555,0.3007,28449.0,28446.0,0.03333316]
[1680311922269,0.3007,28449.0,28446.0,0.02633316]
[1680311922765,0.6014,28449.0,28446.0,0.02633316]
[1680311922959,0.6014,28449.0,28446.0,0.02332796]
[1680311923162,0.6014,28449.0,28446.0,0.00232796]
[1680311923369,0.05,28448.0,28446.0,0.03032796]
[1680311924867,0.3007,28453.0,28446.0,0.01032796]
[1680311925252,0.3007,28453.0,28447.0,0.52858901]
[1680311925859,0.3027,28453.0,28447.0,0.52858901]
[1680311926258,0.3027,28453.0,28447.0,0.52958901]
[1680311926754,0.3007,28450.0,28448.0,0.003181]
[1680311927869,0.3007,28450.0,28448.0,0.011181]
[1680311932967,0.05,28452.0,28448.0,0.011181]
[1680311933170,0.3507,28452.0,28448.0,0.011181]
[1680311933669,0.3507,28452.0,28448.0,0.018181]
[1680311934670,0.3507,28452.0,28448.0,0.004181]
[1680311935571,0.3007,28452.0,28448.0,0.004181]
[1680311943982,0.05,28454.0,28448.0,0.004181]
[1680311944285,0.3007,28452.0,28448.0,0.001]
[1680311944477,0.3007,28452.0,28449.0,0.00327242]
[1680311944873,0.05,28451.0,28449.0,0.00327242]
[1680311945779,0.05,28451.0,28449.0,0.05662364]
[1680311945973,0.05,28451.0,28449.0,0.00327242]
[1680311946289,0.05,28451.0,28449.0,0.008]
[1680311946874,0.3007,28450.0,28449.0,0.008]
[1680311948085,0.3007,28450.0,28449.0,0.015]
[1680311949778,0.05,28451.0,28449.0,0.015]
[1680311950081,0.6014,28450.0,28449.0,0.015]
[1680311950289,0.6014,28450.0,28449.0,0.01481865]
[1680311950772,0.6014,28450.0,28449.0,0.008]
[1680311950973,0.6014,28450.0,28449.0,0.015]
[1680311956777,0.6014,28450.0,28449.0,0.01830563]
[1680311958688,0.05,28451.0,28449.0,0.01830563]
[1680311958884,0.3007,28450.0,28449.0,0.01830563]
[1680311959486,0.3007,28450.0,28449.0,0.01130563]
[1680311960190,0.3007,28450.0,28449.0,0.01830563]
[1680311965792,0.3007,28452.0,28449.0,0.01830563]
[1680311965988,0.3007,28455.0,28449.0,0.01830563]
[1680311966184,0.3007,28452.0,28449.0,0.01830563]
[1680311966695,0.3007,28452.0,28449.0,0.00430563]
[1680311966899,0.3007,28452.0,28449.0,0.05430563]
[1680311969796,0.3007,28452.0,28449.0,0.00430563]
[1680311970692,0.3007,28452.0,28449.0,0.05430563]
[1680311970992,0.05,28456.0,28449.0,0.05330563]
[1680311971204,0.3007,28454.0,28449.0,0.05430563]
[1680311971790,0.3007,28454.0,28449.0,0.05330563]
[1680311971997,0.3007,28454.0,28449.0,0.07430563]
[1680311972499,0.3007,28454.0,28449.0,0.06130563]
[1680311978313,0.3007,28454.0,28450.0,0.52648434]
[1680311978495,0.3007,28454.0,28451.0,0.05]
[1680311979003,0.3007,28454.0,28450.0,0.35403315]
[1680311979904,0.3007,28454.0,28451.0,0.53345992]
[1680311980295,0.3007,28454.0,28451.0,0.52545992]
[1680311980902,0.3007,28457.0,28451.0,0.54645992]
[1680311982604,0.3007,28457.0,28451.0,0.52645992]
[1680311983909,0.3007,28457.0,28451.0,0.52545992]
[1680311984097,0.3007,28457.0,28451.0,0.52645992]
[1680311985205,0.3007,28457.0,28451.0,0.52545992]
[1680311985408,0.3007,28457.0,28451.0,0.52645992]
[1680311986907,0.3007,28457.0,28452.0,0.00442319]
[1680311987207,0.3007,28457.0,28451.0,0.52645992]
[1680311987518,0.30062343,28457.0,28451.0,0.52645992]
[1680311988108,0.30062343,28457.0,28452.0,0.001]
[1680311988609,0.30062343,28457.0,28451.0,0.52645992]
[1680311988807,0.05,28456.0,28451.0,0.52645992]
[1680311989009,0.05,28456.0,28452.0,0.001]
[1680311989509,0.05,28456.0,28451.0,0.82715992]
[1680311990706,0.05,28456.0,28452.0,0.008]
[1680311991403,0.05,28456.0,28451.0,0.3087]
[1680311991806,0.05,28456.0,28452.0,0.008]
[1680311992405,0.3507,28458.0,28452.0,0.008]
[1680311993815,0.3517,28458.0,28451.0,0.3007]
[1680311996610,0.3517,28458.0,28452.0,0.52543614]
[1680312004107,0.3517,28458.0,28451.0,0.40475818]
[1680312004504,0.3517,28458.0,28451.0,0.10405818]
[1680312004714,0.3517,28458.0,28449.0,0.3007]
[1680312004913,0.3007,28455.0,28452.0,0.37760343]
[1680312005114,0.05,28454.0,28451.0,0.40743683]
[1680312005311,0.05,28454.0,28450.0,0.38531589]
[1680312005515,0.3007,28452.0,28447.0,0.05271344]
[1680312005719,0.3007,28452.0,28446.0,0.3007]
[1680312006016,0.3007,28452.0,28451.0,0.021]
[1680312006509,0.3007,28452.0,28448.0,0.00439799]
[1680312007709,0.3007,28452.0,28451.0,0.028]
[1680312008111,0.3007,28452.0,28448.0,0.03239799]
[1680312008714,0.3007,28453.0,28451.0,0.028]
[1680312008916,0.05,28452.0,28451.0,0.028]
[1680312009607,0.05,28452.0,28448.0,0.03239799]
[1680312010218,0.05,28452.0,28448.0,0.08449373]
[1680312010515,0.05,28452.0,28448.0,0.03239799]
[1680312011120,0.05,28452.0,28451.0,0.028]
[1680312011917,0.05,28452.0,28448.0,0.03239799]
[1680312012319,0.05,28452.0,28451.0,0.028]
[1680312012725,0.05,28452.0,28448.0,0.00439799]
[1680312012926,0.05,28452.0,28448.0,0.028]
[1680312013925,0.05,28452.0,28451.0,0.028]
[1680312014424,0.05,28452.0,28448.0,0.028]
[1680312014625,0.3007,28453.0,28448.0,0.028]
[1680312014813,0.3007,28453.0,28451.0,0.028]
[1680312015420,0.3007,28453.0,28448.0,0.028]
[1680312016825,0.05,28452.0,28448.0,0.028]
[1680312017023,0.05,28452.0,28446.0,0.3007]
[1680312017218,0.05,28452.0,28451.0,0.028]
[1680312017625,0.05,28452.0,28448.0,0.028]
[1680312018122,0.05,28452.0,28451.0,0.028]
[1680312018525,0.05,28452.0,28448.0,0.028]
[1680312019034,0.3007,28450.0,28448.0,0.028]
[1680312019627,0.3007,28450.0,28449.0,0.00439686]
[1680312020723,0.3007,28450.0,28446.0,0.3007]
[1680312020928,0.3007,28450.0,28449.0,0.028]
[1680312022021,0.3507,28452.0,28449.0,0.028]
[1680312024726,0.05,28452.0,28449.0,0.028]
[1680312024934,0.05,28454.0,28449.0,0.028]
[1680312026234,0.05,28454.0,28449.0,0.021]
[1680312027934,0.3507,28454.0,28449.0,0.021]
[1680312031041,0.6514,28454.0,28449.0,0.021]
[1680312031239,0.3007,28451.0,28449.0,0.021]
[1680312032743,0.3007,28451.0,28449.0,0.028]
[1680312032948,0.3007,28451.0,28449.0,0.02784562]
[1680312033648,0.05,28453.0,28449.0,0.02784562]
[1680312033850,0.3007,28451.0,28449.0,0.02784562]
[1680312034653,0.3007,28451.0,28450.0,0.00332366]
[1680312034852,0.05,28453.0,28450.0,0.00332366]
[1680312035042,0.3007,28454.0,28449.0,0.02784562]
[1680312035650,0.3007,28454.0,28447.0,0.05283784]
[1680312035850,0.3007,28454.0,28450.0,0.028]
[1680312036250,0.3007,28454.0,28449.0,0.021]
[1680312037164,0.3007,28454.0,28448.0,0.3507]
[1680312037350,0.3007,28454.0,28450.0,0.021]
[1680312038658,0.05,28456.0,28449.0,0.021]
[1680312038858,0.3007,28454.0,28449.0,0.021]
[1680312039553,0.3007,28454.0,28448.0,0.4039179]
[1680312039554,0.05,28456.0,28450.0,0.021]
[1680312039747,0.3007,28454.0,28450.0,0.021]
[1680312039944,0.3007,28454.0,28449.0,0.021]
[1680312040544,0.3007,28454.0,28450.0,0.008]
[1680312041559,0.3007,28454.0,28448.0,0.3539179]
[1680312041760,0.3007,28454.0,28449.0,0.021]
[1680312041960,0.3007,28454.0,28448.0,0.3539179]
[1680312042161,0.3007,28454.0,28450.0,0.021]
[1680312042459,0.3007,28454.0,28448.0,0.3539179]
[1680312042657,0.3007,28454.0,28449.0,0.021]
[1680312043161,0.3007,28454.0,28450.0,0.021]
[1680312044262,0.3007,28454.0,28448.0,0.0532179]
[1680312044463,0.3007,28454.0,28449.0,0.021]
[1680312044664,0.3007,28454.0,28447.0,0.354018]
[1680312044963,0.3007,28454.0,28450.0,0.021]
[1680312045464,0.3007,28454.0,28449.0,0.021]
[1680312045757,0.3007,28454.0,28447.0,0.354018]
[1680312045964,0.3007,28454.0,28450.0,0.021]
[1680312046264,0.3007,28454.0,28447.0,0.354018]
[1680312046460,0.3007,28454.0,28449.0,0.021]
[1680312047367,0.3007,28454.0,28447.0,0.354018]
[1680312047666,0.3007,28454.0,28450.0,0.021]
[1680312048065,0.3007,28454.0,28449.0,0.021]
[1680312048469,0.3007,28454.0,28447.0,0.375018]
[1680312048860,0.3007,28454.0,28447.0,0.354018]
[1680312049066,0.3007,28454.0,28449.0,0.021]
[1680312049369,0.3007,28454.0,28450.0,0.3007]
[1680312049666,0.3007,28454.0,28451.0,0.05334336]
[1680312049868,0.3007,28459.0,28451.0,0.05334336]
[1680312050368,0.3007,28459.0,28453.0,0.3007]
[1680312051260,0.3017,28459.0,28453.0,0.3017]
[1680312052970,0.3007,28458.0,28453.0,0.001]
[1680312054258,0.3017,28458.0,28451.0,0.30404336]
[1680312061172,0.3007,28456.0,28451.0,0.00334336]
[1680312061873,0.051,28458.0,28451.0,0.00334336]
[1680312062075,0.3007,28456.0,28451.0,0.00334336]
[1680312062668,0.3007,28453.0,28451.0,0.01134336]
[1680312063775,0.3007,28453.0,28451.0,0.03134336]
[1680312064978,0.3007,28453.0,28451.0,0.00334336]
[1680312065173,0.3007,28453.0,28451.0,0.02434336]
[1680312065373,0.3007,28453.0,28451.0,0.021]
[1680312065576,0.3007,28453.0,28452.0,0.00334202]
[1680312065777,0.3007,28453.0,28451.0,0.021]
[1680312065970,0.3007,28453.0,28452.0,0.00334198]
[1680312066171,0.3007,28453.0,28451.0,0.021]
[1680312066481,0.3007,28453.0,28452.0,0.00334194]
[1680312066675,0.3007,28453.0,28451.0,0.021]
[1680312066873,0.3007,28453.0,28452.0,0.021]
[1680312067073,0.3007,28453.0,28452.0,0.0243419]
[1680312067275,0.3007,28453.0,28452.0,0.021]
[1680312071680,0.351,28452.0,28445.0,0.0357138]
[1680312071885,0.351,28452.0,28439.0,0.35300353]
[1680312071886,0.3007,28446.0,28439.0,0.84170353]
[1680312072082,0.3007,28444.0,28439.0,0.84170353]
[1680312072287,0.05,28443.0,28440.0,0.1064456]
[1680312072485,0.05,28443.0,28435.0,1.96871791]
[1680312072784,0.05,28443.0,28435.0,0.54222616]
[1680312072985,0.05,28443.0,28436.0,0.05]
[1680312073182,0.05,28443.0,28437.0,0.3007]
[1680312073689,0.05,28443.0,28438.0,0.40027717]
[1680312074483,0.052,28443.0,28438.0,0.40027717]
[1680312074885,0.051,28443.0,28438.0,0.40627717]
[1680312077288,0.001,28443.0,28438.0,0.40627717]
[1680312078485,0.001,28443.0,28438.0,0.4663463]
[1680312079983,0.002,28443.0,28438.0,0.4683463]
[1680312081582,0.3007,28440.0,28438.0,0.4683463]
[1680312082088,0.052,28443.0,28438.0,0.4683463]
[1680312082287,0.3007,28440.0,28438.0,0.4683463]
[1680312082689,0.3027,28440.0,28438.0,0.4683463]
[1680312084189,0.002,28440.0,28438.0,0.4683463]
[1680312084491,0.3027,28440.0,28438.0,0.4683463]
[1680312086987,0.3007,28440.0,28438.0,0.4533463]
[1680312087187,0.3027,28440.0,28438.0,0.4683463]
[1680312088291,0.3007,28440.0,28438.0,0.4533463]
[1680312088591,0.3027,28440.0,28438.0,0.4683463]
[1680312088791,0.3007,28440.0,28438.0,0.4533463]
[1680312088986,0.3027,28440.0,28438.0,0.4683463]
[1680312091688,0.3007,28440.0,28438.0,0.4533463]
[1680312091994,0.3027,28440.0,28438.0,0.4683463]
[1680312093186,0.002,28440.0,28439.0,0.3007]
[1680312093385,0.29396411,28444.0,28440.0,0.05]
[1680312093892,0.3007,28447.0,28442.0,0.3007]
[1680312094089,0.3507,28451.0,28442.0,0.3007]
[1680312094395,0.3507,28451.0,28443.0,0.05]
[1680312094693,0.001,28444.0,28442.0,0.3007]
[1680312094892,0.3007,28448.0,28442.0,0.3027]
[1680312095492,0.3007,28448.0,28443.0,0.002]
[1680312095895,0.3077,28448.0,28442.0,0.3017]
[1680312096799,0.007,28448.0,28442.0,0.001]
[1680312096991,0.007,28448.0,28442.0,0.3017]
[1680312097193,0.007,28448.0,28443.0,0.001]
[1680312098301,0.007,28448.0,28442.0,0.3017]
[1680312098594,0.05,28450.0,28440.0,0.05]
[1680312098787,0.007,28448.0,28443.0,0.001]
[1680312099397,0.3007,28446.0,28443.0,0.001]
[1680312100200,0.3007,28446.0,28442.0,0.3017]
[1680312100699,0.3017,28446.0,28443.0,0.006]
[1680312101096,0.3017,28446.0,28442.0,0.006]
[1680312101501,0.3017,28446.0,28440.0,0.3007]
[1680312101698,0.3017,28446.0,28443.0,0.006]
[1680312103001,0.3007,28446.0,28440.0,0.3007]
[1680312103197,0.3017,28446.0,28442.0,0.006]
[1680312103396,0.3007,28446.0,28440.0,0.3007]
[1680312103605,0.3017,28446.0,28443.0,0.006]
[1680312104098,0.001,28446.0,28442.0,0.006]
[1680312104502,0.001,28446.0,28443.0,0.006]
[1680312105101,0.001,28446.0,28441.0,0.3007]
[1680312105102,0.001,28446.0,28442.0,0.006]
[1680312106413,0.001,28446.0,28443.0,0.006]
[1680312107303,0.001,28446.0,28442.0,0.013]
[1680312107602,0.001,28446.0,28443.0,0.013]
[1680312109090,0.001,28446.0,28442.0,0.013]
[1680312109303,0.3017,28446.0,28442.0,0.013]
[1680312109495,0.3007,28446.0,28441.0,0.3007]
[1680312109903,0.3007,28446.0,28438.0,0.35376913]
[1680312110296,0.05,28445.0,28442.0,0.38225787]
[1680312110602,0.05,28445.0,28439.0,0.52556175]
[1680312111296,0.05,28445.0,28440.0,0.37265261]
[1680312112203,0.05,28445.0,28439.0,0.39493607]
[1680312113604,0.3507,28445.0,28439.0,0.69563607]
[1680312113806,0.3007,28445.0,28439.0,0.69563607]
[1680312115607,0.05,28447.0,28439.0,0.39493607]
[1680312115906,0.007,28445.0,28439.0,0.39593607]
[1680312116104,0.05,28447.0,28439.0,0.39493607]
[1680312116308,0.3007,28444.0,28439.0,0.39593607]
[1680312117003,0.007,28445.0,28439.0,0.39593607]
[1680312117205,0.3007,28444.0,28439.0,0.39593607]
[1680312118207,0.05,28443.0,28439.0,0.39593607]
[1680312118506,0.05,28443.0,28439.0,0.39493607]
[1680312120004,0.3507,28443.0,28439.0,0.39493607]
[1680312120912,0.3007,28443.0,28439.0,0.39493607]
[1680312123712,0.05,28446.0,28439.0,0.39493607]
[1680312124013,0.3007,28444.0,28439.0,0.39493607]
[1680312124216,0.3007,28444.0,28440.0,0.3007]
[1680312124416,0.3507,28447.0,28440.0,0.3007]
[1680312124609,0.02,28446.0,28440.0,0.3007]
[1680312125313,0.3007,28447.0,28440.0,0.3007]
[1680312125515,0.3007,28447.0,28441.0,0.05]
[1680312126314,0.007,28446.0,28441.0,0.05]
[1680312126813,0.3147,28447.0,28441.0,0.051]
[1680312127313,0.001,28446.0,28441.0,0.056]
[1680312127705,0.3007,28447.0,28441.0,0.05]
[1680312127910,0.3007,28447.0,28440.0,0.3007]
[1680312128504,0.05,28449.0,28439.0,0.05]
[1680312128915,0.001,28446.0,28441.0,0.006]
[1680312129118,0.001,28446.0,28441.0,0.056]
[1680312129318,0.3007,28447.0,28440.0,0.3007]
[1680312130025,0.001,28446.0,28441.0,0.006]
[1680312130516,0.3007,28447.0,28440.0,0.3007]
[1680312130824,0.001,28446.0,28441.0,0.006]
[1680312131009,0.001,28446.0,28441.0,0.056]
[1680312131515,0.001,28446.0,28441.0,0.3067]
[1680312132319,0.3007,28447.0,28441.0,0.3007]
[1680312132824,0.001,28446.0,28441.0,0.3067]
[1680312133021,0.001,28446.0,28441.0,0.006]
[1680312133221,0.3007,28447.0,28441.0,0.3007]
[1680312135119,0.001,28446.0,28441.0,0.3067]
[1680312135520,0.001,28446.0,28442.0,0.05]
[1680312135921,0.3007,28447.0,28441.0,0.3007]
[1680312136426,0.001,28446.0,28441.0,0.3067]
[1680312136823,0.3007,28447.0,28441.0,0.3007]
[1680312138028,0.001,28446.0,28441.0,0.3067]
[1680312138226,0.3007,28447.0,28441.0,0.3007]
[1680312138729,0.3007,28448.0,28441.0,0.3007]
[1680312138928,0.001,28446.0,28441.0,0.3067]
[1680312139326,0.3007,28448.0,28441.0,0.3007]
[1680312140724,0.001,28446.0,28442.0,0.3007]
[1680312141125,0.3077,28448.0,28442.0,0.3007]
[1680312141726,0.001,28446.0,28442.0,0.3067]
[1680312142131,0.3077,28448.0,28442.0,0.3017]
[1680312143433,0.001,28446.0,28442.0,0.3067]
[1680312143735,0.3007,28448.0,28442.0,0.3007]
[1680312144030,0.007,28448.0,28442.0,0.001]
[1680312144237,0.3077,28448.0,28442.0,0.3017]
[1680312144824,0.001,28446.0,28442.0,0.3067]
[1680312145130,0.3007,28448.0,28442.0,0.3007]
[1680312145336,0.3077,28448.0,28442.0,0.3017]
[1680312146425,0.001,28446.0,28442.0,0.3067]
[1680312146830,0.3077,28448.0,28442.0,0.3017]
[1680312147429,0.001,28446.0,28442.0,0.3067]
[1680312147629,0.001,28446.0,28442.0,0.006]
[1680312147936,0.3077,28448.0,28444.0,0.3007]
[1680312149139,0.001,28446.0,28444.0,0.3007]
[1680312149637,0.3077,28448.0,28444.0,0.3017]
[1680312149837,0.3077,28448.0,28444.0,0.001]
[1680312150037,0.001,28446.0,28444.0,0.006]
[1680312150537,0.3077,28448.0,28444.0,0.001]
[1680312151037,0.001,28446.0,28444.0,0.006]
[1680312152237,0.3077,28448.0,28444.0,0.001]
[1680312152637,0.001,28446.0,28444.0,0.006]
[1680312153141,0.3077,28448.0,28444.0,0.001]
[1680312153537,0.001,28446.0,28444.0,0.006]
[1680312154736,0.3007,28448.0,28442.0,0.3007]
[1680312154941,0.3077,28448.0,28444.0,0.001]
[1680312155138,0.3007,28448.0,28442.0,0.3007]
[1680312155336,0.001,28446.0,28445.0,0.3007]
[1680312155639,0.3007,28448.0,28445.0,0.3007]
[1680312155838,0.3077,28448.0,28445.0,0.3007]
[1680312156140,0.007,28448.0,28445.0,0.3007]
[1680312156341,0.001,28446.0,28445.0,0.3067]
[1680312157639,0.001,28448.0,28445.0,0.3067]
[1680312158038,0.002,28446.0,28445.0,0.3177]
[1680312158429,0.05,28450.0,28445.0,0.3007]
[1680312158632,0.002,28448.0,28445.0,0.3167]
[1680312159041,0.002,28446.0,28445.0,0.3177]
[1680312159543,0.002,28448.0,28445.0,0.3167]
[1680312160544,0.002,28446.0,28445.0,0.3177]
[1680312161044,0.002,28448.0,28445.0,0.3167]
[1680312161545,0.002,28446.0,28445.0,0.3177]
[1680312162044,0.002,28448.0,28445.0,0.3167]
[1680312163239,0.002,28446.0,28445.0,0.3177]
[1680312163753,0.001,28448.0,28445.0,0.3137]
[1680312164140,0.05,28450.0,28445.0,0.3007]
[1680312164443,0.002,28446.0,28445.0,0.017]
[1680312164637,0.05,28450.0,28444.0,0.05]
[1680312164950,0.001,28448.0,28445.0,0.3137]
[1680312165149,0.05,28450.0,28445.0,0.3007]
[1680312166150,0.3007,28451.0,28445.0,0.3007]
[1680312167551,0.3077,28451.0,28445.0,0.3017]
[1680312170355,0.007,28451.0,28445.0,0.001]
[1680312170560,0.3077,28451.0,28445.0,0.3017]
[1680312172855,0.3077,28451.0,28446.0,0.00175721]
[1680312174652,0.3007,28451.0,28446.0,0.05156026]
[1680312174858,0.3077,28451.0,28446.0,0.05256026]
[1680312176061,0.3007,28451.0,28446.0,0.05156026]
[1680312176259,0.3077,28451.0,28446.0,0.00256026]
[1680312177359,0.3077,28451.0,28446.0,0.00302058]
[1680312177561,0.30748402,28451.0,28446.0,0.00302058]
[1680312178449,0.007,28451.0,28446.0,0.00302058]
[1680312178653,0.3077,28451.0,28447.0,0.3007]
[1680312179056,0.3077,28451.0,28448.0,0.00200284]
[1680312180962,0.3077,28451.0,28448.0,0.00300284]
[1680312185765,0.3007,28451.0,28448.0,0.00200284]
[1680312188766,0.05,28453.0,28448.0,0.00200284]
[1680312189961,0.064,28453.0,28448.0,0.00300284]
[1680312190667,0.014,28453.0,28450.0,0.3007]
[1680312190866,0.014,28453.0,28451.0,0.0023318]
[1680312192466,0.3007,28454.0,28451.0,0.0023318]
[1680312192766,0.007,28453.0,28451.0,0.0033318]
[1680312192965,0.3007,28454.0,28451.0,0.0023318]
[1680312193560,0.3077,28454.0,28451.0,0.0033318]
[1680312195568,0.3007,28454.0,28451.0,0.0023318]
[1680312195862,0.3077,28454.0,28451.0,0.0033318]
[1680312196381,0.05,28453.0,28451.0,0.0033318]
[1680312196667,0.05,28453.0,28451.0,0.0083318]
[1680312197064,0.05,28453.0,28451.0,0.0023318]
[1680312197460,0.3007,28452.0,28447.0,0.3007]
[1680312197668,0.3007,28452.0,28451.0,0.001]
[1680312198659,0.05,28453.0,28447.0,0.05358455]
[1680312198875,0.3007,28452.0,28447.0,0.3007]
[1680312199069,0.05,28451.0,28447.0,0.3007]
[1680312199269,0.05,28451.0,28448.0,0.39325488]
[1680312199469,0.3007,28449.0,28448.0,0.39325488]
[1680312199666,0.3007,28449.0,28447.0,0.05463726]
[1680312199868,0.3007,28449.0,28448.0,0.00266023]
[1680312200162,0.3007,28449.0,28448.0,0.00866023]
[1680312201274,0.3027,28449.0,28448.0,0.00266023]
[1680312201465,0.002,28449.0,28448.0,0.00266023]
[1680312201665,0.6214,28449.0,28448.0,0.00466023]
[1680312202264,0.3207,28449.0,28448.0,0.00466023]
[1680312202668,0.3207,28449.0,28448.0,0.00366023]
[1680312202669,0.3147,28449.0,28448.0,0.00366023]
[1680312204870,0.3007,28449.0,28448.0,0.00266023]
[1680312205267,0.3007,28449.0,28444.0,0.3007]
[1680312205668,0.3007,28449.0,28443.0,0.10406593]
[1680312205869,0.3007,28449.0,28441.0,0.3007]
[1680312206069,0.3007,28449.0,28442.0,0.05]
[1680312206673,0.3007,28449.0,28443.0,0.36897863]
[1680312206974,0.3007,28449.0,28442.0,0.38455151]
[1680312207373,0.3077,28449.0,28444.0,0.001]
[1680312207769,0.3077,28449.0,28442.0,0.38555151]
[1680312208276,0.3007,28449.0,28442.0,0.38455151]
[1680312208569,0.3007,28446.0,28444.0,0.001]
[1680312208782,0.3007,28445.0,28444.0,0.001]
[1680312209070,0.3507,28445.0,28444.0,0.001]
[1680312209782,0.3507,28445.0,28439.0,0.2999]
[1680312210075,0.3507,28445.0,28442.0,0.001]
[1680312210271,0.05,28444.0,28439.0,0.33419926]
[1680312210779,0.05,28444.0,28439.0,0.33619926]
[1680312211072,0.05,28444.0,28440.0,0.39445501]
[1680312211579,0.057,28444.0,28440.0,0.39445501]
[1680312212373,0.3007,28442.0,28440.0,0.39445501]
[1680312212879,0.3007,28442.0,28440.0,0.39545501]
[1680312213267,0.3017,28442.0,28440.0,0.40045501]
[1680312215676,0.001,28442.0,28440.0,0.40045501]
[1680312216289,0.001,28442.0,28441.0,0.05]
[1680312216674,0.3007,28445.0,28441.0,0.05]
[1680312216877,0.001,28442.0,28441.0,0.05]
[1680312217277,0.3007,28445.0,28440.0,0.44445501]
[1680312217474,0.001,28442.0,28441.0,0.063]
[1680312218882,0.001,28442.0,28441.0,0.013]
[1680312219480,0.001,28442.0,28441.0,0.063]
[1680312219685,0.001,28442.0,28441.0,0.013]
[1680312222287,0.001,28442.0,28441.0,0.063]
[1680312222489,0.001,28442.0,28441.0,0.013]
[1680312224989,0.00078219,28442.0,28441.0,0.013]
[1680312241309,0.00078219,28442.0,28441.0,0.063]
[1680312241513,0.00078219,28442.0,28441.0,0.013]
[1680312242216,0.3507,28451.0,28441.0,0.063]
[1680312242508,0.3507,28451.0,28444.0,0.05]
[1680312244503,0.3507,28451.0,28444.0,0.052]
[1680312244709,0.3667,28451.0,28444.0,0.052]
[1680312245310,0.3507,28451.0,28444.0,0.052]
[1680312245611,0.3667,28451.0,28444.0,0.052]
[1680312246518,0.3667,28451.0,28444.0,0.05]
[1680312246817,0.3667,28451.0,28446.0,0.3007]
[1680312248219,0.3667,28451.0,28446.0,0.002]
[1680312248719,0.3667,28451.0,28446.0,0.3027]
[1680312249516,0.3647,28451.0,28446.0,0.3017]
[1680312250325,0.3007,28450.0,28446.0,0.3017]
[1680312252220,0.3077,28450.0,28446.0,0.3017]
[1680312258226,0.007,28450.0,28447.0,0.05]
[1680312258625,0.007,28450.0,28446.0,0.3017]
[1680312259222,0.007,28450.0,28447.0,0.001]
[1680312259824,0.007,28450.0,28446.0,0.3017]
[1680312260428,0.007,28450.0,28446.0,0.35532801]
[1680312261325,0.007,28450.0,28447.0,0.001]
[1680312261627,0.007,28450.0,28446.0,0.35532801]
[1680312262124,0.05,28452.0,28446.0,0.35432801]
[1680312262431,0.007,28450.0,28447.0,0.001]
[1680312262623,0.007,28450.0,28446.0,0.35532801]
[1680312264528,0.3007,28451.0,28446.0,0.35632801]
[1680312264728,0.3007,28451.0,28446.0,0.35432801]
[1680312264929,0.007,28450.0,28446.0,0.35532801]
[1680312265317,0.3147,28451.0,28446.0,0.35532801]
[1680312265919,0.007,28450.0,28446.0,0.35532801]
[1680312266436,0.3147,28451.0,28446.0,0.35532801]
[1680312267630,0.007,28450.0,28446.0,0.35532801]
[1680312268130,0.3147,28451.0,28446.0,0.35532801]
[1680312268629,0.001,28450.0,28446.0,0.35432801]
[1680312269127,0.3017,28451.0,28446.0,0.35432801]
[1680312269330,0.3017,28451.0,28447.0,0.05]
[1680312269525,0.3017,28451.0,28447.0,0.43488316]